Cogmind - Beta 11 @@@ ROGUE MODE // 2022.03.20 @ 09:15:18 Player: veb_robotron Result: Core destroyed Performance ------------- Evolutions (0) 0 Regions Visited (1) 200 Robots Destroyed (5) 25 Value Destroyed (134) 134 Prototype IDs (0) 0 Alien Tech Used (0) 0 Bonus (0) 0 TOTAL SCORE: 359 Bonus ------- None Cogmind --------- Core Integrity 0/250 Matter 145/300 Energy 40/250 System Corruption 2% Temperature Critical (510) Movement Walking (260) Ox2 Location -10/Materials Parts ------- > --- POWER (1) -------- Ion Engine > --- PROPULSION (2) --- Aluminum Leg > --- UTILITY (2) ------ Small Storage Unit Medium Armor Plating > --- WEAPON (2) ------- Heavy EM Pulse Gun Spread Laser > --- INVENTORY (8) ---- Improved Heat Sink Terrain Scanner Seismic Detector Medium Armor Plating Small Laser Peak State ------------ > --- POWER ------------ Light Nuclear Core > --- PROPULSION ------- Aluminum Leg Aluminum Leg > --- UTILITY ---------- Small Storage Unit Medium Armor Plating > --- WEAPON ----------- Heavy EM Pulse Gun Small Laser > --- INVENTORY -------- Aluminum Leg Improved Heat Sink Terrain Scanner Seismic Detector Medium Armor Plating Medium Armor Plating Heavy EM Pulse Gun Spread Laser [Rating: 12] Favorites ----------- Power Light Ion Engine Engine Light Ion Engine Power Core Light Nuclear Core Propulsion Aluminum Leg Leg Aluminum Leg Utility Small Storage Unit Device Seismic Detector Storage Small Storage Unit Protection Medium Armor Plating Weapon Small Laser Energy Gun Small Laser Build | -11 -10 ------- Run | Scr Mat Slots Evolved . | . . Power . | . . Propulsion . | . . Utility . | . . Weapon . | . . Parts Attached 15 | 7 8 Power 3 | 1 2 Engine 2 | 1 1 Core 1 | . 1 Reactor . | . . Propulsion 3 | 2 1 Treads . | . . Leg 3 | 2 1 Wheel . | . . Hover . | . . Flight . | . . Utility 4 | 2 2 Device 1 | 1 . Storage 1 | 1 . Processor . | . . Hackware . | . . Protection 2 | . 2 Artifact . | . . Weapon 5 | 2 3 Energy Gun 5 | 2 3 Energy Cannon . | . . Ballistic Gun . | . . Ballistic Cannon . | . . Launcher . | . . Special Weapon . | . . Impact Weapon . | . . Slashing Weapon . | . . Piercing Weapon . | . . Special Melee Weapon . | . . Unidentified Prototypes . | . . Corrupted Parts 1 | . 1 System Corruption 2 | . 2 Parts Lost 3 | . 3 Power 1 | . 1 Propulsion 1 | . 1 Utility 1 | . 1 Weapon . | . . Highest Loss Streak 3 | . 3 To Critical Strikes . | . . Average Slot Usage (%) 97 | . 97 Engine 7 | . 7 Core 5 | . 5 Leg 26 | . 26 Device 9 | . 9 Storage 14 | . 14 Protection 4 | . 4 Energy Gun 28 | . 28 Naked Turns . | . . Heaviest Build 23 | 11 23 Greatest Support 20 | 20 20 Greatest Overweight (x) 2 | . 2 Average Overweight (x) . | . . Largest Inventory Capacity 8 | 8 8 Average Capacity 7 | 7 8 Most Carried 8 | 6 8 Average Carried 6 | 3 7 Final Capacity 8 | 8 8 Final Carried 5 | 5 5 Class Distribution -------------------- 100% | Mutant Dominant Class ---------------- Mutant | -10/Materials Resources | -11 -10 ----------- Run | Scr Mat Matter Collected 340 | 245 95 Remotely . | . . Salvage Created 197 | 25 172 Parts 16 | 4 12 Haulers Intercepted . | . . Recyclers Shooed . | . . Parts Field Recycled . | . . Retrieved Matter . | . . Parts Self-Destructed . | . . Prevented . | . . Kills | -11 -10 ------- Run | Scr Mat Combat Hostiles Destroyed 3 | . 3 Guns 3 | . 3 Classes Destroyed 3 | 1 2 Builder 1 | . 1 Tunneler 1 | 1 . Grunt 3 | . 3 Best Kill Streak 2 | 1 2 Combat Bots Only 2 | . 2 Max Kills in Single Turn 1 | 1 1 Gunslinging . | . . Exploded . | . . Melee . | . . Uniques/NPCs Destroyed . | . . Combat | -11 -10 -------- Run | Scr Mat Damage Taken 836 | . 836 Core 251 | . 251 Absorbed by Shields . | . . Core Remaining (%) 100 | 100 . Volleys Fired 32 | 2 30 Largest 2 | 2 2 Hottest 110 | 80 110 Shots Fired 53 | 4 49 Gun 53 | 4 49 Cannon . | . . Launcher . | . . Special . | . . Kinetic . | . . Thermal 28 | 4 24 Explosive . | . . Electromagnetic 25 | . 25 Robot Hit Streak 7 | 1 7 Robot Miss Streak 7 | 1 7 Penetration Max . | . . Secondary Targets . | . . Shots Hit Robots 31 | 2 29 Core Hits 16 | 1 15 Critical Kills . | . . Critical Parts Destroyed . | . . Critical Strikes 1 | . 1 Corrupt 1 | . 1 Melee Attacks . | . . Impact . | . . Slashing . | . . Piercing . | . . Sneak Attacks . | . . Combat Hostiles . | . . Follow-up Attacks . | . . Damage Inflicted 470 | 24 446 Guns 470 | 24 446 Cannons . | . . Explosions . | . . Melee . | . . Ramming . | . . Kinetic . | . . Thermal 218 | 24 194 Explosive . | . . Electromagnetic 252 | . 252 Impact . | . . Slashing . | . . Piercing . | . . Highest Corruption 2 | . 2 Average Corruption 2 | . 2 Corruption Purged . | . . Corruption Blocked . | . . Overload Shots . | . . Overflow Damage . | . . Projectiles . | . . Explosions . | . . Melee . | . . Knockbacks . | . . Impact . | . . Kinetic . | . . Secondary . | . . Self-Inflicted Damage . | . . Shots . | . . Rammed . | . . Targets Rammed . | . . Kicked . | . . Crushed . | . . Highest Temperature 541 | 36 541 Average Temperature 298 | 20 315 Received Heat Transfer 420 | . 420 Effects 28 | . 28 Shutdowns 5 | . 5 Energy Bleed 2 | . 2 Interference 4 | . 4 Matter Decay 4 | . 4 Damage (minor) 2 | . 2 Damage (major) 8 | . 8 Damage (core) 3 | . 3 Siege Activations . | . . Robots Corrupted . | . . Combat Hostiles . | . . Parts Fried . | . . Impact Corruptions . | . . Robots Melted . | . . Combat Hostiles . | . . Parts Melted . | . . Heat Transferred 420 | 50 370 Parts Sabotaged . | . . Parts Stolen . | . . Parts Stripped . | . . Power Chain Reactions . | . . Missiles Intercepted . | . . Alert | -11 -10 ------- Run | Scr Mat Peak Influence 93 | 5 93 Initial 3 | . 3 Average 21 | 2 30 Maximum Alert Level . | . . Low Security (%) 100 | 100 100 Level 1 . | . . Level 2 . | . . Level 3 . | . . Level 4 . | . . Level 5 . | . . High Security . | . . Max Security . | . . Squads Dispatched . | . . Investigation . | . . Extermination . | . . Reinforcement . | . . Assault . | . . Garrison . | . . Intercept . | . . Searches Triggered . | . . Construction Impeded . | . . Haulers Reinforced . | . . Active Scanning Responses . | . . Cargo Convoy Interrupts . | . . Stealth | -11 -10 --------- Run | Scr Mat Distress Signals . | . . Communications Jammed . | . . Distress Signals . | . . Times Spotted 7 | . 7 Peak Tracking Total 5 | . 5 Tactical Retreats . | . . Traps | -11 -10 ------- Run | Scr Mat Traps Triggered . | . . Indirectly . | . . Trap Hack Attempts . | . . Triggered . | . . Disarmed . | . . Reprogrammed . | . . Reused . | . . Traps Extracted . | . . Installed . | . . Triggered . | . . Machines | -11 -10 ---------- Run | Scr Mat Machines Disabled 2 | . 2 Max in Single Turn 1 | . 1 Machines Sabotaged . | . . Garrisons Compromised . | . . Overloaded Fab Kills . | . . Hacking | -11 -10 --------- Run | Scr Mat Machines Accessed . | . . Terminals . | . . Fabricators . | . . Repair Stations . | . . Recycling Units . | . . Scanalyzers . | . . Garrison Access . | . . Total Hacks . | . . Successful . | . . Failed . | . . Catastrophic . | . . Database Lockouts . | . . Manual . | . . Terminals . | . . Fabricators . | . . Repair Stations . | . . Recycling Units . | . . Scanalyzers . | . . Garrison Access . | . . Terminal Hacks . | . . Fabricator Hacks . | . . Repair Station Hacks . | . . Recycling Unit Hacks . | . . Scanalyzer . | . . Garrison Access Hacks . | . . Unauthorized Hacks . | . . Terminals . | . . Fabricators . | . . Repair Stations . | . . Recycling Units . | . . Scanalyzers . | . . Garrison Access . | . . Data Cores Recovered . | . . Used . | . . Hacking Detections . | . . Full Trace Events . | . . Feedback Events . | . . Feedback Blocked . | . . Robot Schematics Acquired . | . . Robots Built . | . . Authchips . | . . Time . | . . Total Robot Build Rating . | . . Part Schematics Acquired . | . . Parts Built . | . . Authchips . | . . Time . | . . Total Part Build Rating . | . . Parts Repaired . | . . Time . | . . Parts Recycled . | . . Recycled Matter . | . . Retrieved Matter . | . . Retrieved Components . | . . Parts Scanalyzed . | . . Part Schematics Acquired . | . . Parts Damaged . | . . Bothacking | -11 -10 ------------ Run | Scr Mat Used RIF Installer . | . . Robots Hacked . | . . Non-combat . | . . Combat . | . . Robot Hacks Applied . | . . Relay Couplers Released . | . . Fabnet Peak Effective % . | . . Robots Rewired . | . . Allies Hacked . | . . Hacks Repelled . | . . Allies | -11 -10 -------- Run | Scr Mat Total Allies . | . . Largest Group . | . . Highest-Rated Group . | . . Highest-Rated Ally . | . . Total Orders . | . . Ally Attacks . | . . Total Damage . | . . Kills . | . . Allies Corrupted . | . . Allies Melted . | . . Intel | -11 -10 ------- Run | Scr Mat Robot Analysis Total . | . . Derelict Logs Recovered . | . . Drone Launches . | . . Drone Recoveries . | . . Exploration | -11 -10 ------------- Run | Scr Mat Turns Passed 368 | 122 246 Spaces Moved 174 | 85 89 Core 10 | 10 . Treads . | . . Legs 164 | 75 89 Wheels . | . . Hover . | . . Flight . | . . Fastest Speed 50 | 50 120 Average Speed 117 | 111 123 Slowest Speed 260 | 120 260 Overloaded Moves . | . . Propulsion Burnouts . | . . Robots Hopped . | . . Cave-ins Triggered . | . . Exploration Rate (%) 14 | 6 23 Regions Visited 1 Branch Regions . Pre-discovered Areas . | . . Known Exits Taken . | . . Unknown Exits Taken 1 | 1 . Scrap Searched . | . . Spaces Dug . | . . Terrain Destroyed . | . . Melee . | . . Projectile . | . . AOE . | . . Terrain Rammed . | . . Walls Destroyed . | . . Machines Disabled . | . . Actions | -11 -10 --------- Run | Scr Mat Total 288 | 109 179 Wait 28 | . 28 Move 173 | 84 89 Hop . | . . Pick Up 27 | 14 13 Fast Attach . | . . Attach 9 | 7 2 Detach . | . . Swap 6 | . 6 Drop 13 | 2 11 Fire 32 | 2 30 Melee . | . . Ram . | . . Kick . | . . Crush . | . . Escape Stasis . | . . Rewire . | . . Trap . | . . Miscellaneous . | . . Route ------- -11/Scrapyard -10/Materials History --------- Turn | Location | Event 17 | -11/Scrapyard | Discovered new exit (range 16) 123 | -11/Scrapyard | Entered Materials 313 | -10/Materials | Build established: Mutant 352 | -10/Materials | Core integrity fell below 50% 365 | -10/Materials | Core integrity fell below 20% 370 | -10/Materials | Core destroyed Last Messages --------------- Overheating: Sml. Storage Unit damaged (-52). Overheating: Hvy. EM Pulse Gun damaged (-2). R-06 Scavenger collects Heat Sink. Overheating: Core damaged (-37). Aluminum Leg destroyed. G-47 Trooper IFF system glitched. Overheating: System interference. Hvy. EM Pulse Gun temporarily disabled. R-06 Scavenger collects Aluminum Leg. Power failure, Ion Engine shutdown. Overheating: Energy bleed (-3). R-06 Scavenger collects Hvy. EM Pulse Gun. U-05 Engineer destroyed. Overheating: Med. Armor Plating damaged (-45). Overheating: Hvy. EM Pulse Gun damaged (-1). Overheating: Spread Laser damaged (-3). Overheating: Ion Engine damaged (-19). G-47 Trooper misfires. Power failure, Ion Engine shutdown. Overheating: Core damaged (-47). Map ----- +----------------------------------------------------+ | | | | | | | | | | | | | | | | | ????????????????????????###########??????????????? | | ????????????????????????# #??????????????? | | ????????????????????????# #??????????????? | | #####################???# #??????????????? | | #???# #??????????????? | | #???# !!! #??????????????? | | #???# !!! #??????????????? | | ########### #???# !!! #??????????????? | | = #?????????# *#???# #??????????????? | | [= [#?????????# =#???#####+#####??????????????? | | ! [[[[#???????? + *%####### #????????????????? | | #######?????? #^ =[ #????????????????? | | ???????????"" # =%= #????????????????? | | ?????????# ?# *= #????????????????? | | ?????????#####??########### #????????????????? | | ??????????????????????????## ##????????????????? | | ????????????????############ ##????????????????? | | ????????????????# =@ ##+######????????? | | ??????????????### % g = ^ ????? | | ????????????+ ^ ^ ????? | | ????????????##### """ " ! """" """" ^"?????? | | ????????????????# """" """"% """" """?????????? | | ????????????????# """" """" """" ""??????????? | | ????????????????# ??????????? | | ????????????????# ? ??????????? | | ????????????????# ????????????? | | ????????????????# % ???????????? | | ??????????????? """ ???????????? | | ?????????????? """ [[! ???????????? | | ????????????? """ [[! ??????????? | | ???????????? ?? [!! ###### ??????????? | | ????????????? ??? #????? ???????????? | | ?????????????# ????? ! ??????????????????? | | ??????????????? ??????##### ??????????????????? | | ??????????????????????????? ??????????????????? | | ??????????????????????????? ????????????????????? | | ?????????????????????????????????????????????????? | | ?????????????????????????????????????????????????? | | ?????????????????????????????????????????????????? | | ?????????????????????????????????????????????????? | | ?????????????????????????????????????????????????? | | ?????????????????????????????????????????????????? | +----------------------------------------------------+ Best States ------------- Heat Dissipation 25 Energy Generation 14 Energy Capacity 250 Matter Stores 300 Matter Capacity 300 Sight Range 16 Terrain Scan Density 10 Armor Coverage 225 Evasion (%) 55 Item Schematics ----------------- None Robot Schematics ------------------ None Fabricated ------------ Nothing Alien Tech Used ----------------- None Achievements -------------- None Challenges ------------ None Game ------ Seed BlastGuidanceKit Manual? 0 Play Time 00:07:54 Cumulative 11.0 hours Start 2022.03.20 @ 09:06:33 End 2022.03.20 @ 09:15:18 Sessions 1 Manual Loads 0 Difficulty Rogue Special Mode None Game No. 11 Rogue 11 Adventurer 0 Explorer 0 Win Type - Total 0 Types 0/0/0/0/0/0/0/0/0 Lore% 7 Gallery% 25 Achievement% 17 Wizard Run 0 Options --------- ASCII 0 Keyboard 0 Movement Mouse Keybinds 0 Fullscreen 1 Font 18/SmallcapsGlow Map View 76x50 Tactical HUD 0 Map Filters NONE Filters NONE Steam 1 RUN: 34400302-7af0-4580-816a-9d9750b79688